bitfinex/quotes_BTCUSD_20220731
["timestamp","ask_amount","ask_price","bid_price","bid_amount"]
[1659256496250,0.00024925,23674.0,23672.0,0.304293]
[1659256496493,0.5487,23676.0,23673.0,0.3]
[1659256496727,0.95724713,23676.0,23671.0,0.03363261]
[1659256496941,0.079,23674.0,23671.0,0.03363261]
[1659256497170,0.05,23673.0,23671.0,0.03363261]
[1659256497400,0.07924925,23674.0,23671.0,0.03363261]
[1659256497837,0.71259088,23673.0,23665.0,0.6146]
[1659256498079,0.40725733,23672.0,23665.0,0.6146]
[1659256498327,1.00275733,23672.0,23665.0,0.6146]
[1659256498564,0.40725733,23671.0,23666.0,0.09]
[1659256499939,0.40725733,23671.0,23667.0,0.09]
[1659256500222,0.30533355,23670.0,23667.0,0.09]
[1659256500445,0.58469133,23669.0,23667.0,0.09]
[1659256500669,0.40750658,23669.0,23667.0,0.09]
[1659256500888,0.40750658,23669.0,23667.0,0.165]
[1659256501118,0.304293,23668.0,23667.0,0.165]
[1659256501329,0.40750658,23669.0,23667.0,0.165]
[1659256501563,0.304293,23668.0,23667.0,0.165]
[1659256501802,0.40750658,23669.0,23667.0,0.165]
[1659256502027,0.304293,23668.0,23667.0,0.165]
[1659256502463,0.40750658,23669.0,23667.0,0.165]
[1659256502695,0.304293,23668.0,23667.0,0.09]
[1659256502918,0.334293,23668.0,23667.0,0.166]
[1659256503163,0.03,23668.0,23667.0,0.16617181]
[1659256503389,0.03,23668.0,23667.0,0.166]
[1659256504295,0.00104055,23670.0,23667.0,0.12692304]
[1659256504506,0.00104055,23670.0,23669.0,1.45059025]
[1659256504507,0.40854713,23670.0,23669.0,1.45059025]
[1659256504730,0.71284013,23670.0,23669.0,1.45059025]
[1659256505009,0.71259088,23670.0,23669.0,1.45059025]
[1659256505225,0.71259088,23670.0,23669.0,0.09]
[1659256506774,0.71155033,23670.0,23669.0,0.09]
[1659256506988,0.77155033,23670.0,23669.0,0.09]
[1659256508182,0.71155033,23670.0,23669.0,0.09]
[1659256508558,0.71155033,23670.0,23665.0,0.09]
[1659256508896,0.06,23670.0,23666.0,0.09]
[1659256509122,0.06,23670.0,23668.0,0.09]
[1659256509352,0.304293,23669.0,23668.0,0.17134889]
[1659256509584,0.06,23670.0,23668.0,0.17134889]
[1659256510023,0.304293,23669.0,23668.0,0.17134889]
[1659256510244,0.177434,23669.0,23668.0,0.17134889]
[1659256510462,0.00104055,23670.0,23668.0,0.17134889]
[1659256510693,0.303253,23669.0,23668.0,0.17134889]
[1659256510906,0.072,23669.0,23668.0,0.17134889]
[1659256511350,0.072,23669.0,23668.0,0.20827179]
[1659256512223,0.5955,23672.0,23668.0,0.20827179]
[1659256512441,0.30546855,23671.0,23668.0,0.20827179]
[1659256512723,0.176238,23670.0,23668.0,0.20827179]
[1659256513196,0.17648725,23670.0,23668.0,0.17134889]
[1659256513408,0.176238,23670.0,23668.0,0.1715134]
[1659256513624,0.176238,23670.0,23668.0,0.17134889]
[1659256513842,0.304428,23669.0,23668.0,0.17134889]
[1659256514079,1.04975733,23672.0,23668.0,0.17134889]
[1659256514314,0.30546855,23671.0,23668.0,0.17134889]
[1659256514547,0.176238,23670.0,23669.0,0.12363261]
[1659256514772,0.176238,23670.0,23669.0,0.09]
[1659256515487,0.176238,23670.0,23667.0,0.09]
[1659256515709,0.05,23669.0,23668.0,0.12379712]
[1659256515929,1.00275733,23672.0,23668.0,0.09]
[1659256516162,0.304428,23671.0,23668.0,0.09]
[1659256516381,0.176238,23670.0,23668.0,0.09]
[1659256516585,0.304428,23669.0,23668.0,0.09]
[1659256516848,0.00024925,23670.0,23668.0,0.09]
[1659256517040,0.304428,23670.0,23668.0,0.09]
[1659256517509,0.3057178,23670.0,23668.0,0.09]
[1659256518213,0.85750658,23669.0,23668.0,0.09]
[1659256518662,0.71168533,23669.0,23668.0,0.09]
[1659256518889,0.304428,23669.0,23668.0,0.09]
[1659256519115,0.176238,23670.0,23668.0,0.12363261]
[1659256519344,0.176238,23670.0,23668.0,0.09]
[1659256519345,0.072,23669.0,23668.0,0.09]
[1659256520003,0.304428,23669.0,23668.0,0.09]
[1659256521764,0.376428,23669.0,23668.0,0.09]
[1659256524301,0.304428,23669.0,23668.0,0.09]
[1659256524773,0.304428,23669.0,23668.0,0.17134889]
[1659256526400,0.072,23669.0,23668.0,0.20739394]
[1659256527077,0.144,23669.0,23668.0,0.20739394]
[1659256527567,0.144,23669.0,23668.0,0.17134889]
[1659256527795,0.5955,23672.0,23668.0,0.17134889]
[1659256528078,0.304428,23671.0,23668.0,0.17134889]
[1659256528316,0.176238,23670.0,23668.0,0.17134889]
[1659256528536,0.304428,23669.0,23668.0,0.17134889]
[1659256528768,0.00024925,23670.0,23668.0,0.17134889]
[1659256528986,0.304428,23669.0,23668.0,0.17134889]
[1659256529200,0.06,23670.0,23668.0,0.17134889]
[1659256529412,0.354428,23669.0,23668.0,0.17134889]
[1659256529624,0.06024925,23670.0,23668.0,0.17134889]
[1659256529841,0.304428,23669.0,23668.0,0.17134889]
[1659256530068,0.30546855,23669.0,23664.0,0.10266826]
[1659256530291,0.00104055,23669.0,23668.0,0.17134889]
[1659256530539,0.30546855,23669.0,23668.0,0.17134889]
[1659256530977,0.37746855,23669.0,23668.0,0.17134889]
[1659256531248,0.376428,23669.0,23668.0,0.17134889]
[1659256531923,0.37746855,23669.0,23668.0,0.17134889]
[1659256532359,0.30546855,23669.0,23668.0,0.17134889]
[1659256532820,0.304428,23669.0,23668.0,0.17134889]
[1659256533298,0.376428,23669.0,23668.0,0.17134889]
[1659256534608,0.304428,23669.0,23668.0,0.17134889]
[1659256534834,0.78472588,23669.0,23668.0,0.17134889]
[1659256536936,0.76972588,23669.0,23668.0,0.17134889]
[1659256537610,0.76868533,23669.0,23668.0,0.17134889]
[1659256538300,0.71168533,23669.0,23668.0,0.17134889]
[1659256539007,0.76868533,23669.0,23668.0,0.17134889]
[1659256540283,0.71272588,23669.0,23668.0,0.17134889]
[1659256541294,0.79172588,23669.0,23668.0,0.17134889]
[1659256542556,0.71272588,23669.0,23668.0,0.17134889]
[1659256543114,0.71168533,23669.0,23668.0,0.20515657]
[1659256543321,0.77868533,23669.0,23668.0,0.20515657]
[1659256543548,0.77868533,23669.0,23668.0,0.17134889]
[1659256543762,0.77861077,23669.0,23668.0,0.17134889]
[1659256544634,0.71161077,23669.0,23668.0,0.17134889]
[1659256544851,0.77861077,23669.0,23668.0,0.17134889]
[1659256546221,0.71161077,23669.0,23668.0,0.17134889]
[1659256546701,0.71265132,23669.0,23668.0,0.17134889]
[1659256546921,0.77965132,23669.0,23668.0,0.17134889]
[1659256547865,0.77861077,23669.0,23668.0,0.17134889]
[1659256548347,0.30435344,23669.0,23668.0,0.17134889]
[1659256548561,0.5955,23672.0,23668.0,0.17134889]
[1659256548782,0.40725733,23671.0,23668.0,0.17134889]
[1659256549003,0.041,23669.0,23668.0,0.17134889]
[1659256549230,0.041,23669.0,23668.0,0.09]
[1659256549470,0.041,23669.0,23668.0,0.17134889]
[1659256550147,0.041,23669.0,23668.0,0.17152396]
[1659256550378,0.40725733,23671.0,23668.0,0.17152396]
[1659256550621,0.304428,23670.0,23668.0,0.17152396]
[1659256550909,0.40725733,23670.0,23668.0,0.17152396]
[1659256551364,0.304428,23669.0,23668.0,0.17134889]
[1659256551580,0.304428,23669.0,23668.0,0.20809927]
[1659256551803,0.345428,23669.0,23668.0,0.20809927]
[1659256552013,0.041,23669.0,23668.0,0.20809927]
[1659256552922,0.04204055,23669.0,23668.0,0.17134889]
[1659256553149,0.345428,23669.0,23668.0,0.17134889]
[1659256553617,0.041,23669.0,23668.0,0.17134889]
[1659256553851,0.40750658,23670.0,23668.0,0.17134889]
[1659256554083,0.304428,23669.0,23668.0,0.20809927]
[1659256554301,0.345428,23669.0,23668.0,0.20809927]
[1659256554546,0.345428,23669.0,23668.0,0.12675038]
[1659256554808,0.345428,23669.0,23668.0,0.20809927]
[1659256555023,0.041,23669.0,23668.0,0.20809927]
[1659256556411,0.041,23669.0,23668.0,0.17134889]
[1659256556856,0.082,23669.0,23668.0,0.17134889]
[1659256557562,0.5955,23672.0,23668.0,0.17134889]
[1659256557780,0.30546855,23671.0,23668.0,0.20547004]
[1659256558008,0.58342033,23670.0,23668.0,0.17134889]
[1659256558262,0.304428,23669.0,23668.0,0.17134889]
[1659256558752,0.40725733,23670.0,23668.0,0.20796779]
[1659256558978,0.383428,23669.0,23668.0,0.20796779]
[1659256559198,0.079,23669.0,23668.0,0.17134889]
[1659256559903,0.79068533,23669.0,23668.0,0.17134889]
[1659256560138,0.79172588,23669.0,23668.0,0.17134889]
[1659256560346,0.71272588,23669.0,23668.0,0.17134889]
[1659256561041,0.75868533,23669.0,23668.0,0.17496564]
[1659256561258,0.75972588,23669.0,23668.0,0.17134889]
[1659256562415,0.71272588,23669.0,23668.0,0.17134889]
[1659256562859,0.75972588,23669.0,23668.0,0.17134889]
[1659256564229,0.71272588,23669.0,23668.0,0.17134889]
[1659256564907,0.75972588,23669.0,23668.0,0.17134889]
[1659256565804,0.75868533,23669.0,23668.0,0.17134889]
[1659256566279,0.71168533,23669.0,23668.0,0.17134889]
[1659256566942,0.75868533,23669.0,23668.0,0.17134889]
[1659256567622,1.58366533,23669.0,23668.0,0.17134889]
[1659256568089,1.58366533,23669.0,23668.0,0.17123844]
[1659256568090,1.63366533,23669.0,23668.0,0.17123844]
[1659256568325,1.63666533,23669.0,23668.0,0.17123844]
[1659256568795,1.33666533,23669.0,23668.0,0.17123844]
[1659256569009,1.39266533,23669.0,23668.0,0.17123844]
[1659256569231,1.39370588,23669.0,23668.0,0.17123844]
[1659256570189,1.32770588,23669.0,23668.0,0.17123844]
[1659256570872,1.36370588,23669.0,23668.0,0.17123844]
[1659256571833,1.32370588,23669.0,23668.0,0.17123844]
[1659256572073,1.24202588,23669.0,23668.0,0.17123844]
[1659256572293,1.15602588,23669.0,23668.0,0.17123844]
[1659256573004,1.19202588,23669.0,23668.0,0.17123844]
[1659256574168,1.15602588,23669.0,23668.0,0.17123844]
[1659256574400,1.18770588,23669.0,23668.0,0.17123844]
[1659256574621,1.15602588,23669.0,23668.0,0.17123844]
[1659256574831,1.19302588,23669.0,23668.0,0.17123844]
[1659256575475,1.24302588,23669.0,23668.0,0.17123844]
[1659256576160,1.15602588,23669.0,23668.0,0.17123844]
[1659256576419,1.28770588,23669.0,23668.0,0.17123844]
[1659256576852,1.32470588,23669.0,23668.0,0.17123844]
[1659256577300,1.19302588,23669.0,23668.0,0.17123844]
[1659256577518,1.24302588,23669.0,23668.0,0.17123844]
[1659256578217,1.28770588,23669.0,23668.0,0.17123844]
[1659256578459,1.58770588,23669.0,23668.0,0.17123844]
[1659256578682,1.28770588,23669.0,23668.0,0.17123844]
[1659256578901,1.32470588,23669.0,23668.0,0.17123844]
[1659256579821,1.29302588,23669.0,23668.0,0.17123844]
[1659256580257,1.25602588,23669.0,23668.0,0.17123844]
[1659256580506,1.25602588,23669.0,23662.0,0.0021]
[1659256580507,0.4433,23663.0,23662.0,0.0021]
[1659256580750,1.07672033,23663.0,23662.0,0.0021]
[1659256580978,1.02672033,23663.0,23662.0,0.0021]
[1659256581201,1.12672033,23663.0,23662.0,0.0021]
[1659256581718,1.07672033,23663.0,23662.0,0.0021]
[1659256582844,1.15841033,23663.0,23662.0,0.0021]
[1659256583083,0.59354925,23661.0,23659.0,0.002]
[1659256583325,1.60523458,23660.0,23659.0,0.002]
[1659256583579,1.90823458,23660.0,23659.0,0.0001]
[1659256583805,2.33992458,23660.0,23659.0,0.0001]
[1659256584267,1.25627513,23660.0,23659.0,0.0001]
[1659256584514,1.25627513,23660.0,23659.0,0.0924]
[1659256584515,0.71168533,23660.0,23659.0,0.0924]
[1659256584752,0.71168533,23660.0,23659.0,0.10504348]
[1659256584986,0.79068533,23660.0,23659.0,0.10504348]
[1659256585751,0.79068533,23660.0,23659.0,0.01274348]
[1659256586191,0.79068533,23660.0,23659.0,0.0001]
[1659256586415,0.71272588,23660.0,23659.0,0.0001]
[1659256586887,0.79172588,23660.0,23659.0,0.0001]
[1659256588246,0.71168533,23660.0,23659.0,0.0001]
[1659256588923,0.79068533,23660.0,23659.0,0.0001]
[1659256590726,0.71168533,23660.0,23659.0,0.0001]
[1659256590941,0.79068533,23660.0,23659.0,0.0001]
[1659256592141,0.79172588,23660.0,23659.0,0.0001]
[1659256592205,0.71272588,23660.0,23659.0,0.0001]
[1659256592780,0.79172588,23660.0,23659.0,0.0001]
[1659256593010,0.79068533,23660.0,23659.0,0.12603261]
[1659256593224,0.48625733,23660.0,23659.0,0.43046061]
[1659256593497,0.079,23660.0,23659.0,0.73046061]
[1659256593922,0.079,23660.0,23659.0,0.73036708]
[1659256594135,0.3748,23666.0,23659.0,0.73036708]
[1659256594358,0.71168533,23665.0,23659.0,0.03363908]
[1659256594569,0.04738408,23660.0,23659.0,0.00737937]
[1659256595638,0.04738408,23660.0,23659.0,0.04101198]
[1659256595869,0.45464141,23660.0,23659.0,0.00737937]
[1659256596057,0.71168533,23660.0,23659.0,6.47e-06]
[1659256596485,0.40725733,23660.0,23659.0,6.47e-06]
[1659256596838,0.79068533,23660.0,23659.0,6.47e-06]
[1659256597070,0.48625733,23660.0,23659.0,6.47e-06]
[1659256597337,0.79068533,23660.0,23659.0,6.47e-06]
[1659256598202,0.71168533,23660.0,23659.0,0.03363908]
[1659256598471,0.71168533,23660.0,23659.0,6.47e-06]
[1659256598876,0.48625733,23660.0,23659.0,6.47e-06]
[1659256599299,0.48625733,23660.0,23659.0,0.03363908]
[1659256599773,0.48625733,23660.0,23659.0,0.03848732]
[1659256600223,0.40716249,23660.0,23659.0,0.03848732]
[1659256600900,0.48616249,23660.0,23659.0,0.03848732]
[1659256601159,0.48616249,23660.0,23659.0,6.47e-06]
[1659256602283,0.40716249,23660.0,23659.0,6.47e-06]
[1659256602985,0.79163104,23660.0,23659.0,6.47e-06]
[1659256603208,1.23493104,23660.0,23659.0,6.47e-06]
[1659256604351,1.15593104,23660.0,23659.0,6.47e-06]
[1659256605037,1.23493104,23660.0,23659.0,6.47e-06]
[1659256605270,0.79163104,23660.0,23659.0,6.47e-06]
[1659256605499,1.23493104,23660.0,23659.0,6.47e-06]
[1659256606416,1.15593104,23660.0,23659.0,6.47e-06]
[1659256606655,1.15593104,23660.0,23658.0,6.47e-06]
[1659256606656,0.10024925,23659.0,23658.0,6.47e-06]
[1659256606895,0.10024925,23659.0,23652.0,0.0011]
[1659256606896,1.74045958,23659.0,23652.0,0.0011]
[1659256607130,0.85055733,23655.0,23652.0,0.0011]
[1659256607358,0.63342033,23654.0,23653.0,0.0004843]
[1659256607604,0.40725733,23654.0,23653.0,0.0004843]
[1659256608051,0.40725733,23654.0,23652.0,0.0011]
[1659256609041,0.304428,23653.0,23652.0,0.0011]
[1659256609274,0.4433,23657.0,23652.0,0.13785]
[1659256609514,0.40725733,23656.0,23654.0,0.05]
[1659256609969,0.40725733,23656.0,23654.0,0.06264348]
[1659256610672,0.40725733,23656.0,23655.0,0.03363261]
[1659256610903,0.48525733,23656.0,23655.0,0.03363261]
[1659256611139,0.48525733,23656.0,23652.0,0.562384]
[1659256611140,0.48525733,23656.0,23652.0,0.0011]
[1659256611415,0.71168533,23655.0,23652.0,0.0011]
[1659256611662,0.58342033,23654.0,23653.0,0.03363261]
[1659256611888,0.45725733,23654.0,23653.0,0.03363261]
[1659256612112,0.40829788,23654.0,23652.0,0.0011]
[1659256612326,0.40725733,23653.0,23652.0,0.0011]
[1659256613775,0.40725733,23653.0,23652.0,0.03473261]
[1659256614269,0.40725733,23653.0,23652.0,0.0011]
[1659256615411,0.85055733,23653.0,23652.0,0.0011]
[1659256615636,1.15498533,23653.0,23652.0,0.0011]
[1659256616821,1.76034588,23653.0,23652.0,0.0011]
[1659256617052,1.79334588,23653.0,23652.0,0.0011]
[1659256618239,1.76034588,23653.0,23652.0,0.0011]
[1659256618925,1.79334588,23653.0,23652.0,0.0011]
[1659256619865,1.79334588,23653.0,23650.0,0.099366]
[1659256619867,1.35004588,23653.0,23652.0,0.03806702]
[1659256620355,1.04561788,23653.0,23652.0,0.0923]
[1659256620359,1.01261788,23653.0,23652.0,0.0923]
[1659256620937,1.01261788,23653.0,23651.0,0.01264348]
[1659256621152,0.40725733,23652.0,23650.0,0.099366]
[1659256621370,0.40725733,23652.0,23635.0,0.211428]
[1659256621371,0.84654925,23641.0,23635.0,0.211428]
[1659256621595,0.84654925,23641.0,23632.0,0.0011]
[1659256621596,0.4433,23635.0,23632.0,0.0011]
[1659256621810,0.55750658,23633.0,23632.0,0.0011]
[1659256622016,1.4733585,23633.0,23632.0,0.0011]
[1659256622225,1.42696958,23633.0,23630.0,0.0031]
[1659256622434,0.95080658,23631.0,23630.0,0.0031]
[1659256622634,1.4112591,23631.0,23630.0,0.0031]
[1659256622859,1.15764802,23631.0,23630.0,0.0031]
[1659256622975,1.27972033,23631.0,23630.0,0.0031]
[1659256623205,0.85055733,23631.0,23630.0,0.00671108]
[1659256623421,0.85055733,23631.0,23630.0,0.14346108]
[1659256623422,0.40725733,23631.0,23630.0,0.14346108]
[1659256624064,0.39954256,23631.0,23630.0,0.19346108]
[1659256624387,0.057,23633.0,23632.0,0.00361108]
[1659256624388,0.40725733,23633.0,23632.0,0.00361108]
[1659256624528,0.40725733,23633.0,23632.0,0.09591108]
[1659256624737,0.40725733,23636.0,23632.0,0.09591108]
[1659256624947,0.40725733,23636.0,23635.0,0.05]
[1659256625159,0.40725733,23636.0,23633.0,0.01264348]
[1659256625160,0.71168533,23636.0,23633.0,0.01264348]
[1659256625370,0.5927,23642.0,23633.0,0.01264348]
[1659256625371,0.40725733,23635.0,23634.0,0.00361108]
[1659256625823,0.40829788,23635.0,23634.0,0.00361108]
[1659256626046,0.40829788,23635.0,23634.0,0.01625456]
[1659256626493,0.71272588,23635.0,23632.0,0.00361108]
[1659256626710,0.40829788,23635.0,23632.0,0.00361108]
[1659256626940,0.40829788,23635.0,23630.0,0.0031]
[1659256626941,0.71168533,23634.0,23630.0,0.0031]
[1659256627155,0.58342033,23633.0,23630.0,0.0031]
[1659256627371,0.08004055,23635.0,23630.0,0.0031]
[1659256627372,0.71168533,23632.0,23630.0,0.00322957]
[1659256627594,0.40725733,23632.0,23630.0,0.00322957]
[1659256627808,0.08453877,23631.0,23630.0,0.00322957]
[1659256628019,0.40725733,23632.0,23630.0,0.00322957]
[1659256628472,0.40725733,23635.0,23634.0,0.00361108]
[1659256628952,0.40725733,23635.0,23632.0,0.00361108]
[1659256629415,0.72971,23643.0,23632.0,0.01625456]
[1659256629416,0.40725733,23639.0,23632.0,0.01625456]
[1659256629647,0.40725733,23639.0,23633.0,0.01264348]
[1659256630333,0.40725733,23639.0,23632.0,0.16625456]
[1659256631066,0.48625733,23639.0,23632.0,0.16625456]
[1659256631294,0.40725733,23638.0,23633.0,0.3]
[1659256631511,0.40725733,23638.0,23633.0,0.65]
[1659256631749,0.079,23639.0,23637.0,0.05]
[1659256631970,0.079,23639.0,23634.0,0.354428]
[1659256631971,0.079,23639.0,23638.0,0.58363261]
[1659256632241,0.079,23639.0,23638.0,1.154428]
[1659256632464,0.0909,23648.0,23638.0,1.154428]
[1659256632703,0.40725733,23647.0,23639.0,0.3]
[1659256632921,0.40725733,23647.0,23640.0,0.304428]
[1659256633147,0.40725733,23647.0,23641.0,0.3]
[1659256633398,0.40725733,23649.0,23642.0,0.304428]
[1659256633615,0.40725733,23647.0,23643.0,0.3]
[1659256633850,0.40725733,23647.0,23641.0,0.3]
[1659256633851,0.30546855,23646.0,23641.0,0.3]
[1659256634069,0.58342033,23645.0,23638.0,0.05]
[1659256634295,0.40725733,23644.0,23638.0,0.4]
[1659256634518,0.40725733,23644.0,23639.0,0.304428]
[1659256635001,0.40725733,23644.0,23640.0,0.6]
[1659256635006,0.40725733,23644.0,23640.0,0.65]
[1659256635007,0.077,23644.0,23640.0,0.65]
[1659256635241,0.077,23644.0,23643.0,0.6]
[1659256635467,0.077,23644.0,23643.0,0.754428]
[1659256635691,0.077,23644.0,23643.0,0.78806061]
[1659256635925,0.077,23644.0,23643.0,0.68806061]
[1659256636164,0.07804055,23644.0,23643.0,0.604428]
[1659256636385,0.40725733,23648.0,23643.0,0.604428]
[1659256636608,0.40725733,23648.0,23643.0,0.3]
[1659256636836,0.40725733,23648.0,23639.0,0.05]
[1659256637054,0.40725733,23648.0,23643.0,0.063]
[1659256637955,0.304428,23647.0,23643.0,0.063]
[1659256638204,0.7433,23650.0,23643.0,0.063]
[1659256638205,0.40829788,23646.0,23643.0,0.063]
[1659256638426,0.71168533,23645.0,23637.0,0.4]
[1659256638679,0.40725733,23645.0,23638.0,0.71168533]
[1659256638906,0.40725733,23645.0,23643.0,0.04]
[1659256639362,0.40725733,23645.0,23643.0,0.07808789]
[1659256639590,0.40725733,23645.0,23643.0,0.04]
[1659256640264,0.40725733,23645.0,23639.0,0.35]
[1659256640714,0.40725733,23645.0,23640.0,0.304428]
[1659256640938,0.40725733,23645.0,23639.0,0.40020455]
[1659256641171,0.40725733,23645.0,23640.0,0.304428]
[1659256641447,0.40725733,23645.0,23641.0,0.3]
[1659256641665,0.40725733,23645.0,23642.0,0.03385538]
[1659256642100,0.40829788,23645.0,23639.0,0.4]
[1659256642321,0.40829788,23645.0,23640.0,0.304428]
[1659256642577,0.40829788,23645.0,23641.0,0.3]
[1659256642800,0.40829788,23645.0,23639.0,0.35]
[1659256643019,0.40829788,23645.0,23639.0,0.4]
[1659256643241,0.40725733,23644.0,23639.0,0.3]
[1659256643471,0.40725733,23644.0,23636.0,0.22434644]
[1659256643472,0.40725733,23644.0,23637.0,0.00011456]
[1659256644446,0.40725733,23644.0,23636.0,0.211354]
[1659256644661,0.40725733,23644.0,23637.0,0.304428]
[1659256644874,0.40725733,23644.0,23638.0,0.604428]
[1659256645098,0.40725733,23644.0,23639.0,0.304428]
[1659256645318,0.40725733,23644.0,23640.0,0.3]
[1659256645996,0.40725733,23644.0,23641.0,0.03363261]
[1659256646243,0.40725733,23644.0,23640.0,0.3]
[1659256646454,0.40725733,23644.0,23638.0,0.05]
[1659256646672,0.40725733,23644.0,23639.0,0.304428]
[1659256646889,0.40725733,23644.0,23640.0,0.3]
[1659256647115,0.40725733,23644.0,23637.0,0.35015645]
[1659256647360,0.40725733,23644.0,23638.0,0.304428]
[1659256647571,0.40725733,23644.0,23637.0,0.4]
[1659256647803,0.40725733,23644.0,23638.0,0.304428]
[1659256648021,0.40725733,23644.0,23637.0,0.40015645]
[1659256648480,0.40725733,23644.0,23637.0,0.30015645]
[1659256648704,0.40725733,23644.0,23637.0,0.1]
[1659256648961,0.40725733,23644.0,23638.0,0.3]
[1659256649708,0.40725733,23644.0,23638.0,0.35]
[1659256650142,0.40725733,23644.0,23637.0,0.4]
[1659256650389,0.40725733,23644.0,23638.0,0.304428]
[1659256650618,0.40725733,23644.0,23639.0,0.3]
[1659256651072,0.40725733,23644.0,23639.0,0.35]
[1659256651292,0.40725733,23644.0,23639.0,0.4]
[1659256651742,0.40725733,23644.0,23639.0,0.1]
[1659256651964,0.40725733,23644.0,23637.0,0.35020457]
[1659256652200,0.40725733,23644.0,23638.0,0.354428]
[1659256652433,0.40725733,23644.0,23639.0,0.604428]
[1659256652650,0.40725733,23644.0,23639.0,0.05]
[1659256652879,0.40725733,23644.0,23638.0,0.05]
[1659256654155,0.40725733,23644.0,23639.0,0.304428]
[1659256654406,0.40725733,23644.0,23640.0,0.3]
[1659256654629,0.40725733,23644.0,23638.0,0.05]
[1659256654843,0.40725733,23644.0,23639.0,0.304428]
[1659256655097,0.40725733,23644.0,23640.0,0.3]
[1659256655315,0.40725733,23644.0,23641.0,0.03454749]
[1659256655524,0.40725733,23644.0,23641.0,0.03363261]
[1659256655743,0.40725733,23644.0,23638.0,0.1]
[1659256655962,0.40725733,23644.0,23639.0,0.304428]
[1659256656188,0.40725733,23644.0,23640.0,0.3]
[1659256656623,0.00104055,23643.0,23640.0,0.3]
[1659256656839,0.40829788,23643.0,23640.0,0.3]
[1659256657352,0.40829788,23643.0,23638.0,0.35]
[1659256657569,0.40829788,23643.0,23638.0,0.4]
[1659256657820,0.40829788,23643.0,23639.0,0.304428]
[1659256658050,0.40829788,23643.0,23640.0,0.33454754]
[1659256658268,0.40829788,23643.0,23640.0,0.03454754]
[1659256658493,0.5808,23647.0,23641.0,0.304428]
[1659256658730,0.40725733,23646.0,23642.0,0.3]
[1659256659221,0.00104055,23645.0,23643.0,0.61593355]
[1659256659468,0.40725733,23644.0,23643.0,0.61593355]
[1659256660141,0.5808,23647.0,23643.0,0.65066587]
[1659256660381,0.5729,23652.0,23646.0,0.05]
[1659256660616,0.5729,23652.0,23646.0,0.66587013]
[1659256660617,0.40725733,23650.0,23646.0,0.66587013]
[1659256661074,0.077,23647.0,23646.0,0.66587013]
[1659256661299,0.077,23647.0,23646.0,0.70060231]
[1659256661530,0.077,23647.0,23646.0,0.61587013]
[1659256662230,0.71168533,23647.0,23646.0,0.61587013]
[1659256662941,0.74572588,23647.0,23646.0,0.69387013]
[1659256663622,1.27073588,23647.0,23646.0,0.53007013]
[1659256663852,1.18902588,23647.0,23646.0,0.078]
[1659256664525,1.18773588,23647.0,23642.0,0.00020453]
[1659256664758,0.08453877,23643.0,23637.0,0.46506858]
[1659256664984,0.40725733,23642.0,23637.0,0.46506858]
[1659256665212,0.40725733,23641.0,23637.0,0.46506858]
[1659256665453,0.00104055,23640.0,23637.0,0.46506858]
[1659256665689,0.08453877,23638.0,23637.0,0.46506858]
[1659256665920,0.08453877,23638.0,23637.0,0.31726346]
[1659256665921,0.40725733,23638.0,23637.0,0.31726346]
[1659256666142,0.40725733,23638.0,23637.0,0.01512886]
[1659256666601,0.40725733,23638.0,23637.0,0.01283546]
[1659256667077,0.40725733,23638.0,23635.0,0.354428]
[1659256667297,0.886,23644.0,23636.0,0.35]
[1659256667298,0.40725733,23643.0,23636.0,0.35]
[1659256667767,0.40725733,23643.0,23637.0,0.5158]
[1659256667998,0.40725733,23643.0,23638.0,0.304428]
[1659256668285,0.40725733,23643.0,23639.0,0.3]
[1659256668505,0.00104055,23642.0,23640.0,0.03363261]
[1659256668736,0.40725733,23641.0,23640.0,0.03363261]
[1659256669182,0.40725733,23641.0,23639.0,0.079]
[1659256670386,0.40725733,23641.0,23637.0,0.561372]
[1659256670613,0.40725733,23641.0,23638.0,0.38806061]
[1659256670847,0.40725733,23641.0,23639.0,0.304428]
[1659256671079,0.40725733,23641.0,23639.0,0.079]
[1659256671539,0.40725733,23641.0,23640.0,0.304428]
[1659256671774,0.5572,23649.0,23640.0,0.45]
[1659256672041,0.5572,23649.0,23641.0,0.3]
[1659256672042,0.40725733,23648.0,23641.0,0.3]
[1659256672517,0.40725733,23648.0,23640.0,0.4473]
[1659256672749,0.40725733,23648.0,23640.0,0.5473]
[1659256672979,0.45825733,23648.0,23641.0,0.305]
[1659256673205,0.40725733,23647.0,23641.0,0.305]
[1659256673672,0.40725733,23647.0,23641.0,0.005]
[1659256674348,0.40725733,23647.0,23640.0,0.8473]
[1659256675116,0.40725733,23647.0,23640.0,0.8863]
[1659256675341,0.40725733,23647.0,23641.0,0.3]
[1659256676020,0.40725733,23648.0,23642.0,0.354428]
[1659256676249,0.40725733,23648.0,23643.0,0.3]
[1659256676477,0.40725733,23648.0,23642.0,0.1]
[1659256676699,0.40725733,23648.0,23642.0,0.05]
[1659256676937,0.40725733,23648.0,23643.0,0.01]
[1659256676938,0.47525733,23648.0,23643.0,0.01]
[1659256677194,0.304428,23647.0,23643.0,0.01]
[1659256677463,0.00104055,23646.0,23643.0,0.01]
[1659256677710,0.00104055,23646.0,23644.0,0.03363261]
[1659256677951,0.00104055,23646.0,23643.0,0.01]
[1659256678620,0.304428,23645.0,23643.0,0.01]
[1659256678903,0.2555934,23645.0,23643.0,0.059]
[1659256679119,0.304428,23644.0,23643.0,0.059]
[1659256679574,0.2555934,23645.0,23643.0,0.059]
[1659256680516,0.2555934,23645.0,23639.0,0.566]
[1659256680517,0.304428,23644.0,23639.0,0.616]
[1659256680739,0.2555934,23645.0,23639.0,0.40725733]
[1659256680980,0.2555934,23645.0,23643.0,0.078]
[1659256681205,0.79726465,23644.0,23643.0,0.078]
[1659256681430,0.71272588,23644.0,23643.0,0.078]
[1659256681866,0.71168533,23644.0,23643.0,0.078]
[1659256682125,0.40725733,23644.0,23643.0,0.078]
[1659256682340,0.40725733,23644.0,23642.0,0.03363261]
[1659256682821,0.40725733,23648.0,23643.0,0.05]
[1659256683041,0.40725733,23648.0,23643.0,0.079]
[1659256683267,0.304428,23647.0,23643.0,0.079]
[1659256683485,0.40725733,23646.0,23643.0,0.079]
[1659256683726,0.40829788,23646.0,23643.0,0.079]